fUSD/lending_fUSD_20260601
["ID","MTS","AMOUNT","RATE_DAILY","PERIOD"]
[423625516,1780264238000,-500.0,9.598e-05,2]
[423625515,1780264238000,-3292.0,9.582e-05,2]
[423625514,1780264238000,-250.0,9.514e-05,2]
[423625520,1780264238000,-3065.64,0.00010103,2]
[423625512,1780264238000,-500.0,9.324e-05,2]
[423625517,1780264238000,-177.41,9.845e-05,2]
[423625510,1780264238000,-366.53,9.111e-05,2]
[423625511,1780264238000,-255.0,9.302e-05,2]
[423625508,1780264238000,-500.0,9.05e-05,2]
[423625509,1780264238000,-366.53,9.065e-05,2]
[423625513,1780264238000,-1441.65,9.396e-05,2]
[423625507,1780264238000,-366.53,9.02e-05,2]
[423625570,1780264239000,-500.0,0.00013698,2]
[423625569,1780264239000,-500.0,0.00013698,2]
[423625562,1780264239000,-500.0,0.00013698,2]
[423625565,1780264239000,-500.0,0.00013698,2]
[423625564,1780264239000,-500.0,0.00013698,2]
[423625563,1780264239000,-500.0,0.00013698,2]
[423625559,1780264239000,-501.20372086,0.00013698,2]
[423625558,1780264239000,-500.0,0.00013698,2]
[423625560,1780264239000,-500.0,0.00013698,2]
[423625557,1780264239000,-500.0,0.00013698,2]
[423625553,1780264239000,-500.0,0.00013698,2]
[423625568,1780264239000,-500.0,0.00013698,2]
[423625561,1780264239000,-500.0,0.00013698,2]
[423625566,1780264239000,-500.0,0.00013698,2]
[423625578,1780264239000,-500.0,0.00013698,2]
[423625571,1780264239000,-500.0,0.00013698,2]
[423625573,1780264239000,-500.0,0.00013698,2]
[423625572,1780264239000,-500.0,0.00013698,2]
[423625574,1780264239000,-500.0,0.00013698,2]
[423625577,1780264239000,-500.0,0.00013698,2]
[423625575,1780264239000,-500.0,0.00013698,2]
[423625554,1780264239000,-500.0,0.00013698,2]
[423625576,1780264239000,-500.0,0.00013698,2]
[423625580,1780264239000,-500.0,0.00013698,2]
[423625582,1780264239000,-500.0,0.00013698,2]
[423625583,1780264239000,-500.0,0.00013698,2]
[423625579,1780264239000,-500.0,0.00013698,2]
[423625581,1780264239000,-500.0,0.00013698,2]
[423625586,1780264239000,-311.16697579,0.00013698,2]
[423625567,1780264239000,-500.0,0.00013698,2]
[423625556,1780264239000,-500.0,0.00013698,2]
[423625546,1780264239000,-500.0,0.00013698,2]
[423625550,1780264239000,-500.0,0.00013698,2]
[423625584,1780264239000,-500.0,0.00013698,2]
[423625523,1780264239000,-3065.64,0.00010355,2]
[423625522,1780264239000,-1441.65,0.00010336,2]
[423625526,1780264239000,-3065.64,0.0001086,2]
[423625524,1780264239000,-4609.0,0.0001054,2]
[423625525,1780264239000,-3065.64,0.00010608,2]
[423625530,1780264239000,-177.41,0.00011076,2]
[423625527,1780264239000,-150.0,0.00010959,2]
[423625529,1780264239000,-150.0,0.00010989,2]
[423625528,1780264239000,-150.0,0.00010959,2]
[423625533,1780264239000,-1441.65,0.00011276,2]
[423625531,1780264239000,-15446.78537002,0.00011099,2]
[423625534,1780264239000,-31472.36,0.00011316,2]
[423625532,1780264239000,-3065.64,0.00011113,2]
[423625535,1780264239000,-2759.0,0.00011595,2]
[423625536,1780264239000,-15446.78536993,0.00011738,2]
[423625537,1780264239000,-3192.89,0.00012148,2]
[423625543,1780264239000,-178.0,0.00013351,2]
[423625541,1780264239000,-11347.38968608,0.00012831,2]
[423625542,1780264239000,-178.0,0.00013351,2]
[423625538,1780264239000,-8608.81610317,0.000122,2]
[423625539,1780264239000,-178.0,0.000122,2]
[423625540,1780264239000,-150.74,0.00012329,2]
[423625544,1780264239000,-181.62473346,0.00013351,2]
[423625545,1780264239000,-276541.4510639,0.00013351,2]
[423625547,1780264239000,-500.0,0.00013698,2]
[423625551,1780264239000,-321.46293792,0.00013698,2]
[423625549,1780264239000,-500.0,0.00013698,2]
[423625552,1780264239000,-500.0,0.00013698,2]
[423625555,1780264239000,-500.0,0.00013698,2]
[423625587,1780264239000,-505.37675136,0.00013698,2]
[423625548,1780264239000,-500.0,0.00013698,2]
[423625588,1780264239000,-9244.3,0.00013699,2]
[423625619,1780264239000,-500.0,0.00016831,2]
[423625625,1780264239000,-151.0,0.0001822,2]
[423625650,1780264239000,-315.0,0.00021,2]
[423625624,1780264239000,-151.0,0.0001822,2]
[423625626,1780264239000,-15446.78536993,0.00018379,2]
[423625627,1780264239000,-256.1,0.0001841,2]
[423625628,1780264239000,-295.0,0.00019114,2]
[423625629,1780264239000,-150.0,0.000195,7]
[423625630,1780264239000,-243.896559,0.000196,2]
[423625631,1780264239000,-500.0,0.00019636,2]
[423625635,1780264239000,-409.0,0.0002,2]
[423625634,1780264239000,-315.0,0.0002,2]
[423625632,1780264239000,-352.23700345,0.00019854,2]
[423625636,1780264239000,-226.0,0.0002,2]
[423625638,1780264239000,-410.0,0.0002,2]
[423625637,1780264239000,-905.0,0.0002,2]
[423625639,1780264239000,-740.0,0.0002,2]
[423625641,1780264239000,-749.0,0.0002,2]
[423625640,1780264239000,-151.0,0.0002,2]
[423625642,1780264239000,-197.66,0.0002,2]
[423625644,1780264239000,-3098.87,0.0002,2]
[423625643,1780264239000,-661.0,0.0002,2]
[423625648,1780264239000,-256.1,0.00020381,2]
[423625649,1780264239000,-295.0,0.00020758,2]
[423625646,1780264239000,-9999.99,0.00020145,2]
[423625645,1780264239000,-2838.9,0.00020145,2]
[423625647,1780264239000,-27456.47,0.00020145,2]
[423625651,1780264239000,-409.0,0.00021,2]
[423625585,1780264239000,-500.0,0.00013698,2]
[423625622,1780264239000,-151.0,0.0001822,2]
[423625620,1780264239000,-11347.38968608,0.00017245,2]
[423625633,1780264239000,-295.0,0.00019936,2]
[423625623,1780264239000,-151.0,0.0001822,2]
[423625621,1780264239000,-151.0,0.0001822,2]
[423625592,1780264239000,-499.99,0.00013699,2]
[423625593,1780264239000,-9999.99,0.00013699,2]
[423625591,1780264239000,-353.49,0.00013699,2]
[423625597,1780264239000,-299.99,0.00013699,2]
[423625595,1780264239000,-999.99,0.00013699,2]
[423625594,1780264239000,-150.99,0.00013699,2]
[423625589,1780264239000,-24999.99,0.00013699,2]
[423625596,1780264239000,-1102.76,0.00013699,2]
[423625598,1780264239000,-9999.99,0.00013699,2]
[423625599,1780264239000,-166.66,0.00013699,2]
[423625601,1780264239000,-727.79,0.00013699,2]
[423625600,1780264239000,-200.0,0.00013699,2]
[423625602,1780264239000,-2500.0,0.00013699,2]
[423625603,1780264239000,-163.47,0.000137,2]
[423625590,1780264239000,-754.18,0.00013699,2]
[423625617,1780264239000,-450.31,0.00016438,2]
[423625604,1780264239000,-166.66,0.00013836,2]
[423625618,1780264239000,-151.0792231,0.00016693,3]
[423625616,1780264239000,-256.1,0.00016438,2]
[423625615,1780264239000,-454.30943566,0.000162,2]
[423625613,1780264239000,-454.30943566,0.00016,2]
[423625611,1780264239000,-15446.78536993,0.00015058,2]
[423625612,1780264239000,-450.31,0.00015068,2]
[423625607,1780264239000,-500.0,0.00014027,2]
[423625608,1780264239000,-166.66,0.0001411,2]
[423625606,1780264239000,-50753.00634154,0.0001399,2]
[423625610,1780264239000,-166.66,0.00014384,2]
[423625609,1780264239000,-166.66,0.00014247,2]
[423625605,1780264239000,-166.66,0.00013973,2]
[423625614,1780264239000,-454.30943566,0.000161,2]
[423625693,1780264240000,-670.43076362,0.00023824,2]
[423625697,1780264240000,-226.0,0.00024,2]
[423625696,1780264240000,-409.0,0.00024,2]
[423625695,1780264240000,-315.0,0.00024,2]
[423625694,1780264240000,-270.70157936,0.00023927,2]
[423625690,1780264240000,-661.0,0.00023,2]
[423625687,1780264240000,-740.0,0.00023,2]
[423625692,1780264240000,-3098.87,0.0002353,2]
[423625689,1780264240000,-749.0,0.00023,2]
[423625683,1780264240000,-409.0,0.00023,2]
[423625681,1780264240000,-295.0,0.00022401,2]
[423625679,1780264240000,-442.48,0.000223,14]
[423625698,1780264240000,-905.0,0.00024,2]
[423625691,1780264240000,-179.56,0.00023,30]
[423625699,1780264240000,-410.0,0.00024,2]
[423625708,1780264240000,-175.85,0.00024658,2]
[423625700,1780264240000,-740.0,0.00024,2]
[423625702,1780264240000,-749.0,0.00024,2]
[423625703,1780264240000,-661.0,0.00024,2]
[423625704,1780264240000,-1000.0,0.00024024,2]
[423625705,1780264240000,-256.1,0.00024324,2]
[423625706,1780264240000,-1000.0,0.00024658,2]
[423625709,1780264240000,-157.06,0.00024726,2]
[423625707,1780264240000,-231.54,0.00024658,2]
[423625713,1780264240000,-428.0,0.00025,2]
[423625715,1780264240000,-911.135698,0.00025,2]
[423625710,1780264240000,-545.07,0.00024902,7]
[423625714,1780264240000,-233.0,0.00025,2]
[423625712,1780264240000,-330.0,0.00025,2]
[423625711,1780264240000,-175.85,0.00024946,7]
[423625701,1780264240000,-162.0,0.00024,2]
[423625688,1780264240000,-151.0,0.00023,2]
[423625652,1780264240000,-226.0,0.00021,2]
[423625682,1780264240000,-315.0,0.00023,2]
[423625716,1780264240000,-410.0,0.00025,2]
[423625653,1780264240000,-905.0,0.00021,2]
[423625654,1780264240000,-410.0,0.00021,2]
[423625657,1780264240000,-749.0,0.00021,2]
[423625655,1780264240000,-740.0,0.00021,2]
[423625656,1780264240000,-151.0,0.00021,2]
[423625659,1780264240000,-1003.68,0.00021273,2]
[423625658,1780264240000,-661.0,0.00021,2]
[423625660,1780264240000,-905.80281227,0.00021439,2]
[423625661,1780264240000,-295.0,0.00021579,2]
[423625662,1780264240000,-369.9326031,0.00021612,2]
[423625665,1780264240000,-485.30124228,0.0002174,2]
[423625663,1780264240000,-11347.38968608,0.00021659,2]
[423625664,1780264240000,-15446.78536993,0.00021699,2]
[423625684,1780264240000,-226.0,0.00023,2]
[423625673,1780264240000,-410.0,0.00022,2]
[423625667,1780264240000,-5000.0,0.00021918,2]
[423625671,1780264240000,-226.0,0.00022,2]
[423625675,1780264240000,-151.0,0.00022,2]
[423625676,1780264240000,-749.0,0.00022,2]
[423625669,1780264240000,-315.0,0.00022,2]
[423625674,1780264240000,-740.0,0.00022,2]
[423625678,1780264240000,-545.07,0.00022,2]
[423625677,1780264240000,-661.0,0.00022,2]
[423625672,1780264240000,-905.0,0.00022,2]
[423625666,1780264240000,-3098.87,0.00021765,2]
[423625668,1780264240000,-261.01,0.00021918,2]
[423625680,1780264240000,-256.1,0.00022353,2]
[423625685,1780264240000,-905.0,0.00023,2]
[423625686,1780264240000,-410.0,0.00023,2]
[423625670,1780264240000,-409.0,0.00022,2]
[423625719,1780264240000,-664.0,0.00025,2]
[423625717,1780264240000,-750.0,0.00025,2]
[423625785,1780264240000,-156.31,0.00028675,7]
[423625757,1780264240000,-161.92087944,0.00028373,2]
[423625755,1780264240000,-15446.78536993,0.0002834,2]
[423625756,1780264240000,-184.02463671,0.00028373,2]
[423625759,1780264240000,-256.5580844,0.00028373,2]
[423625758,1780264240000,-185.32621335,0.00028373,2]
[423625760,1780264240000,-237.44868435,0.00028373,2]
[423625761,1780264240000,-258.33576632,0.00028373,2]
[423625763,1780264240000,-220.47792189,0.00028373,2]
[423625762,1780264240000,-179.97094368,0.00028373,2]
[423625764,1780264240000,-152.32555782,0.00028373,2]
[423625765,1780264240000,-197.36834683,0.00028376,2]
[423625766,1780264240000,-153.35809196,0.00028376,2]
[423625767,1780264240000,-153.55917208,0.00028387,2]
[423625771,1780264240000,-183.84288171,0.00028387,2]
[423625770,1780264240000,-180.13511916,0.00028387,2]
[423625772,1780264240000,-156.15650475,0.00028511,2]
[423625775,1780264240000,-171.04010141,0.00028513,2]
[423625787,1780264240000,-420.74,0.000287,7]
[423625718,1780264240000,-764.0,0.00025,2]
[423625784,1780264240000,-293.5,0.00028664,7]
[423625786,1780264240000,-293.5,0.00028696,30]
[423625782,1780264240000,-697.5,0.00028634,30]
[423625779,1780264240000,-156.31,0.00028633,2]
[423625752,1780264240000,-607.0,0.00028205,3]
[423625780,1780264240000,-763.47,0.00028633,30]
[423625783,1780264240000,-1293.75,0.00028634,30]
[423625778,1780264240000,-470.23,0.00028633,30]
[423625777,1780264240000,-2073.14,0.00028632,30]
[423625776,1780264240000,-1282.64,0.00028632,30]
[423625773,1780264240000,-166.11075189,0.00028513,2]
[423625774,1780264240000,-205.31326045,0.00028513,2]
[423625781,1780264240000,-293.5,0.00028633,2]
[423625754,1780264240000,-256.1,0.00028267,2]
[423625768,1780264240000,-218.77724185,0.00028387,2]
[423625751,1780264240000,-368.73,0.000282,30]
[423625731,1780264240000,-256.1,0.00026296,2]
[423625733,1780264240000,-500.0,0.00026641,2]
[423625732,1780264240000,-500.0,0.00026641,2]
[423625730,1780264240000,-11347.38968608,0.00026073,2]
[423625726,1780264240000,-1003.68,0.00025786,2]
[423625724,1780264240000,-3098.87,0.00025295,7]
[423625734,1780264240000,-500.0,0.00026641,2]
[423625727,1780264240000,-1520.24509226,0.00025841,7]
[423625722,1780264240000,-175.85,0.00025234,30]
[423625728,1780264240000,-500.0,0.00026,2]
[423625720,1780264240000,-2174.799,0.00025,2]
[423625729,1780264240000,-150.0,0.00026,4]
[423625753,1780264240000,-500.0,0.00028264,16]
[423625723,1780264240000,-500.0,0.00025288,2]
[423625721,1780264240000,-15446.78536993,0.0002502,2]
[423625735,1780264240000,-3098.87,0.0002706,7]
[423625725,1780264240000,-2000.0,0.00025674,2]
[423625743,1780264240000,-420.74,0.000274,7]
[423625736,1780264240000,-607.0,0.00027137,2]
[423625748,1780264240000,-200.0,0.00027984,2]
[423625749,1780264240000,-399.0,0.00028,30]
[423625747,1780264240000,-545.07,0.00027805,7]
[423625746,1780264240000,-329.0,0.00027678,10]
[423625744,1780264240000,-500.0,0.0002744,14]
[423625745,1780264240000,-607.0,0.00027671,2]
[423625750,1780264240000,-156.70278265,0.00028,10]
[423625739,1780264240000,-231.54,0.00027397,2]
[423625740,1780264240000,-300.0,0.00027397,2]
[423625737,1780264240000,-372.57,0.00027397,30]
[423625738,1780264240000,-1500.0,0.00027397,2]
[423625741,1780264240000,-10692.19,0.00027397,10]
[423625742,1780264240000,-238.35,0.000274,7]
[423625840,1780264241000,-470.23,0.000288,7]
[423625838,1780264241000,-2073.14,0.00028799,7]
[423625839,1780264241000,-238.35,0.000288,7]
[423625837,1780264241000,-1282.64,0.00028799,7]
[423625832,1780264241000,-500.0,0.00028768,2]
[423625835,1780264241000,-200.0,0.00028781,2]
[423625830,1780264241000,-500.0,0.00028768,2]
[423625833,1780264241000,-166.89214839,0.00028768,2]
[423625829,1780264241000,-500.0,0.00028768,2]
[423625828,1780264241000,-649.24403707,0.00028768,2]
[423625834,1780264241000,-200.0,0.00028773,2]
[423625844,1780264241000,-156.31,0.00028804,7]
[423625836,1780264241000,-293.5,0.0002879,30]
[423625842,1780264241000,-763.47,0.000288,7]
[423625854,1780264241000,-156.31,0.00028932,7]
[423625843,1780264241000,-1293.75,0.000288,7]
[423625845,1780264241000,-293.5,0.00028822,2]
[423625846,1780264241000,-3098.87,0.00028825,7]
[423625848,1780264241000,-156.31,0.00028847,30]
[423625849,1780264241000,-1590.0,0.0002885,3]
[423625847,1780264241000,-2000.0,0.00028834,2]
[423625856,1780264241000,-1282.64,0.00028966,2]
[423625857,1780264241000,-2073.14,0.00028966,2]
[423625850,1780264241000,-293.5,0.00028854,7]
[423625852,1780264241000,-156.31,0.0002889,2]
[423625855,1780264241000,-293.5,0.00028948,7]
[423625851,1780264241000,-293.5,0.00028885,30]
[423625853,1780264241000,-293.5,0.00028917,2]
[423625831,1780264241000,-500.0,0.00028768,2]
[423625841,1780264241000,-697.5,0.000288,7]
[423625826,1780264241000,-500.0,0.00028768,2]
[423625859,1780264241000,-697.5,0.00028967,2]
[423625825,1780264241000,-500.0,0.00028768,2]
[423625788,1780264241000,-156.31,0.00028718,30]
[423625789,1780264241000,-293.5,0.00028727,2]
[423625791,1780264241000,-293.5,0.00028759,7]
[423625790,1780264241000,-607.0,0.00028739,3]
[423625796,1780264241000,-500.0,0.00028768,2]
[423625792,1780264241000,-156.31,0.00028761,2]
[423625793,1780264241000,-372.57,0.00028767,30]
[423625794,1780264241000,-500.0,0.00028768,2]
[423625798,1780264241000,-500.0,0.00028768,2]
[423625795,1780264241000,-500.0,0.00028768,2]
[423625797,1780264241000,-500.0,0.00028768,2]
[423625799,1780264241000,-500.0,0.00028768,2]
[423625800,1780264241000,-500.0,0.00028768,2]
[423625804,1780264241000,-500.0,0.00028768,2]
[423625827,1780264241000,-500.0,0.00028768,2]
[423625802,1780264241000,-500.0,0.00028768,2]
[423625810,1780264241000,-500.0,0.00028768,2]
[423625812,1780264241000,-500.0,0.00028768,2]
[423625808,1780264241000,-500.0,0.00028768,2]
[423625814,1780264241000,-150.0,0.00028768,2]
[423625815,1780264241000,-500.0,0.00028768,2]
[423625817,1780264241000,-500.0,0.00028768,2]
[423625818,1780264241000,-602.68629337,0.00028768,2]
[423625820,1780264241000,-500.0,0.00028768,2]
[423625816,1780264241000,-185.30413615,0.00028768,2]
[423625821,1780264241000,-500.0,0.00028768,2]
[423625819,1780264241000,-500.0,0.00028768,2]
[423625822,1780264241000,-500.0,0.00028768,2]
[423625823,1780264241000,-500.0,0.00028768,2]
[423625824,1780264241000,-500.0,0.00028768,2]
[423625806,1780264241000,-150.0,0.00028768,2]
[423625858,1780264241000,-470.23,0.00028967,2]
[423625868,1780264241000,-293.5,0.0002898,30]
[423625862,1780264241000,-2000.0,0.00028971,2]
[423625894,1780264241000,-156.31,0.0002919,7]
[423625896,1780264241000,-156.39,0.00029232,30]
[423625899,1780264241000,-1282.64,0.000293,7]
[423625898,1780264241000,-607.0,0.00029273,4]
[423625900,1780264241000,-2073.14,0.000293,7]
[423625902,1780264241000,-697.5,0.00029301,7]
[423625901,1780264241000,-470.23,0.00029301,7]
[423625905,1780264241000,-200.0,0.0002933,2]
[423625904,1780264241000,-1293.75,0.00029301,7]
[423625903,1780264241000,-763.47,0.00029301,7]
[423625906,1780264241000,-420.74,0.000294,7]
[423625908,1780264241000,-1120.03344672,0.00029527,5]
[423625907,1780264241000,-1063.62446836,0.00029527,5]
[423625910,1780264241000,-1079.87514627,0.00029527,5]
[423625909,1780264241000,-1019.02944637,0.00029527,5]
[423625912,1780264241000,-1029.44349304,0.00029527,5]
[423625911,1780264241000,-1121.4299017,0.00029527,5]
[423625914,1780264241000,-1146.27072629,0.00029527,5]
[423625913,1780264241000,-1123.90788882,0.00029527,5]
[423625916,1780264241000,-200.0,0.00029561,2]
[423625915,1780264241000,-150.0,0.00029534,2]
[423625917,1780264241000,-238.35,0.000296,7]
[423625921,1780264241000,-151.0,0.000297,30]
[423625923,1780264241000,-749.0,0.000297,30]
[423625919,1780264241000,-159.0,0.000297,30]
[423625918,1780264241000,-410.0,0.000297,30]
[423625920,1780264241000,-740.0,0.000297,30]
[423625922,1780264241000,-157.0,0.000297,30]
[423625861,1780264241000,-1293.75,0.00028967,2]
[423625895,1780264241000,-293.5,0.00029201,2]
[423625893,1780264241000,-293.5,0.00029169,30]
[423625924,1780264241000,-156.0,0.000297,30]
[423625897,1780264241000,-293.56,0.00029232,7]
[423625891,1780264241000,-293.5,0.00029138,7]
[423625860,1780264241000,-763.47,0.00028967,2]
[423625865,1780264241000,-1648.72,0.00028971,2]
[423625864,1780264241000,-2000.0,0.00028971,2]
[423625867,1780264241000,-156.31,0.00028975,30]
[423625866,1780264241000,-188.64740034,0.00028971,2]
[423625925,1780264241000,-661.0,0.000297,30]
[423625869,1780264241000,-2000.0,0.00029,2]
[423625871,1780264241000,-5964.15,0.00029,2]
[423625870,1780264241000,-1186.97,0.00029,2]
[423625872,1780264241000,-166.84,0.00029,2]
[423625874,1780264241000,-210.69,0.00029,30]
[423625875,1780264241000,-293.5,0.00029011,2]
[423625873,1780264241000,-169.96,0.00029,30]
[423625877,1780264241000,-293.5,0.00029043,7]
[423625863,1780264241000,-2000.0,0.00028971,2]
[423625878,1780264241000,-156.31,0.00029061,7]
[423625892,1780264241000,-156.31,0.00029147,2]
[423625889,1780264241000,-1293.75,0.00029134,30]
[423625890,1780264241000,-500.0,0.00029137,10]
[423625888,1780264241000,-763.47,0.00029134,30]
[423625876,1780264241000,-156.31,0.00029018,2]
[423625887,1780264241000,-697.5,0.00029134,30]
[423625886,1780264241000,-470.23,0.00029134,30]
[423625880,1780264241000,-6714.12,0.000291,2]
[423625883,1780264241000,-459.45332818,0.00029112,17]
[423625884,1780264241000,-1282.64,0.00029133,30]
[423625881,1780264241000,-156.31,0.00029104,30]
[423625882,1780264241000,-293.5,0.00029106,2]
[423625879,1780264241000,-293.5,0.00029075,30]
[423625885,1780264241000,-2073.14,0.00029133,30]
[423625976,1780264242000,-200.0,0.00030137,2]
[423625968,1780264242000,-177.55092032,0.00029847,2]
[423625967,1780264242000,-410.62652089,0.00029847,2]
[423625965,1780264242000,-180.39166326,0.00029847,2]
[423625961,1780264242000,-150.0,0.00029834,2]
[423625958,1780264242000,-226.0,0.00029775,30]
[423625966,1780264242000,-332.22150377,0.00029847,2]
[423625962,1780264242000,-312.3130095,0.00029846,2]
[423625963,1780264242000,-226.2217868,0.00029846,2]
[423625960,1780264242000,-607.0,0.00029807,4]
[423625959,1780264242000,-905.0,0.00029775,30]
[423625964,1780264242000,-168.51375674,0.00029847,2]
[423625971,1780264242000,-293.5,0.00029999,3]
[423625975,1780264242000,-231.54,0.00030137,2]
[423625973,1780264242000,-1423.64925408,0.0003,7]
[423625969,1780264242000,-342.08020282,0.00029847,2]
[423625970,1780264242000,-2000.0,0.00029998,21]
[423625978,1780264242000,-1011.43,0.00030137,30]
[423625977,1780264242000,-1000.0,0.00030137,3]
[423625979,1780264242000,-166.5970789,0.00030137,2]
[423625974,1780264242000,-1423.64925408,0.0003,7]
[423625980,1780264242000,-333.1941578,0.00030137,2]
[423625981,1780264242000,-200.0,0.00030137,15]
[423625982,1780264242000,-164.35,0.00030137,2]
[423625983,1780264242000,-150.58,0.00030137,2]
[423625985,1780264242000,-7244.9602,0.00030137,25]
[423625956,1780264242000,-315.0,0.00029775,30]
[423625972,1780264242000,-293.51,0.00029999,3]
[423625957,1780264242000,-409.0,0.00029775,30]
[423625940,1780264242000,-306.71618392,0.00029706,2]
[423625954,1780264242000,-367.68576342,0.00029717,2]
[423625986,1780264242000,-172.43,0.00030137,2]
[423625926,1780264242000,-1000.0,0.000297,7]
[423625928,1780264242000,-323.84175887,0.00029703,2]
[423625927,1780264242000,-368.04927343,0.00029703,2]
[423625934,1780264242000,-304.65111565,0.00029703,2]
[423625931,1780264242000,-516.67153264,0.00029703,2]
[423625929,1780264242000,-513.1161688,0.00029703,2]
[423625932,1780264242000,-359.94188737,0.00029703,2]
[423625930,1780264242000,-474.8973687,0.00029703,2]
[423625935,1780264242000,-394.73669367,0.00029706,2]
[423625939,1780264242000,-174.22859941,0.00029706,2]
[423625933,1780264242000,-440.95584378,0.00029703,2]
[423625937,1780264242000,-216.16440807,0.00029706,2]
[423625955,1780264242000,-156.06823759,0.00029717,2]
[423625936,1780264242000,-204.54915868,0.00029706,2]
[423625941,1780264242000,-202.13014603,0.00029706,2]
[423625942,1780264242000,-197.27832687,0.00029706,2]
[423625944,1780264242000,-202.43701426,0.00029706,2]
[423625945,1780264242000,-221.76764193,0.00029706,2]
[423625943,1780264242000,-247.4120229,0.00029706,2]
[423625948,1780264242000,-170.40289336,0.00029706,2]
[423625952,1780264242000,-158.50637335,0.00029717,2]
[423625951,1780264242000,-307.11834416,0.00029717,2]
[423625949,1780264242000,-202.86114975,0.00029706,2]
[423625950,1780264242000,-196.01566885,0.00029706,2]
[423625946,1780264242000,-207.70816275,0.00029706,2]
[423625947,1780264242000,-191.53533824,0.00029706,2]
[423625953,1780264242000,-437.55448371,0.00029717,2]
[423625938,1780264242000,-167.66732712,0.00029706,2]
[423625984,1780264242000,-372.57,0.00030137,30]
[423625992,1780264242000,-1221.17444882,0.00030137,25]
[423625988,1780264242000,-7244.9602,0.00030137,25]
[423626022,1780264242000,-552.07391014,0.00030589,2]
[423626024,1780264242000,-189.55576139,0.00030589,2]
[423626030,1780264242000,-278.89617453,0.00030589,2]
[423626025,1780264242000,-223.59235649,0.00030589,2]
[423626026,1780264242000,-209.88423616,0.00030589,2]
[423626027,1780264242000,-769.6742532,0.00030589,2]
[423626023,1780264242000,-485.76263831,0.00030589,2]
[423626028,1780264242000,-712.34605305,0.00030589,2]
[423626029,1780264242000,-775.00729896,0.00030589,2]
[423626031,1780264242000,-294.98254049,0.00030589,2]
[423626032,1780264242000,-163.10316335,0.00030589,2]
[423626034,1780264242000,-539.91283105,0.00030589,2]
[423626033,1780264242000,-155.29320833,0.00030589,2]
[423626036,1780264242000,-150.06642712,0.00030589,2]
[423626035,1780264242000,-298.66164108,0.00030589,2]
[423626037,1780264242000,-215.68079694,0.00030589,2]
[423626038,1780264242000,-263.92985847,0.00030589,2]
[423626042,1780264242000,-259.05351718,0.00030589,2]
[423626041,1780264242000,-166.95919349,0.00030589,2]
[423626044,1780264242000,-661.43376567,0.00030589,2]
[423626040,1780264242000,-293.8965262,0.00030589,2]
[423626043,1780264242000,-295.05080976,0.00030589,2]
[423626039,1780264242000,-223.18287409,0.00030589,2]
[423626046,1780264242000,-242.07549863,0.00030589,2]
[423626045,1780264242000,-276.11041174,0.00030589,2]
[423626048,1780264242000,-267.08008306,0.00030589,2]
[423625987,1780264242000,-172.43,0.00030137,2]
[423626020,1780264242000,-185.11432009,0.00030589,2]
[423626019,1780264242000,-205.19840119,0.00030589,2]